Workbook

Sheet Libellés
A1: BANQUE 1 | B1: BANQUE 2 | C1: BANQUE 3 | D1: BANQUE 4
A2: ABONNEMENT | B2: VIR EUROPEEN SEPA RECU | C2: Téléphone | D2: CARTE VISA /
A3: CHEQUE N° | B3: VIR EUROPEEN SEPA EMIS | C3: Impôts | D3: PENSION
A4: DIRECTION GALE FINANCES | B4: CHEQUE N° | C4: virement | D4: PRLV /
A5: 1° appel de fonds | B5: PRELEVEMENT BANQUE 1 | C5: CPAM | D5: PRLV IMPÔTS
A6: 2° appel de fonds | B6: PRELEVEMENT FRANCE TELECOM | C6: Chèque | D6: VIR EMIS /
A7: 3° appel de fonds | B7: VIR CPTE A CPTE RECU | D7: VIR RECU /
A8: 4° appel de fonds | B8: VIR EMIS /
A9: Régul charges | B9: VIR RECU /
A10: appel travaux
A11: LOYER
A12: LOYER 2
A13: PRLV 1
A14: PRLV 2
A15: PRLV TRESOR PUBLIC
A16: VIR EMIS /
A17: VIR RECU /

Sheet MENU
I6: SOLDE
I8: ='BANQUE 1'!A2 -> 1000
I12: SOLDE
I14: ='BANQUE 2'!A2 -> 4840.59
I19: SOLDE
I21: ='BANQUE 3'!A2 -> 1410.35
I26: SOLDE
I28: ='BANQUE 4'!A2 -> 7973.27

Sheet BANQUE 1
C1: BANQUE 1
A2: =OFFSET(G4,1,) -> 1000 | C2: Dates | D2: Libellés | E2: Débit | F2: Crédit | G2: Solde
B3: Compt_1
A4: =COUNTA($C4:$C$5) -> 0 | G4: =IF(C4<>"",$G$5-SUM(E4:$E$5)+SUM(F4:$F$5),"") -> 
D5: SOLDE INITIAL | G5: 1000
G30: =IF(C30="","",IF(E30>0,G31-E30,G31+F30)) -> 
G31: =IF(C31="","",IF(E31>0,G32-E31,G32+F31)) -> 
G32: =IF(C32="","",IF(E32>0,G33-E32,G33+F33)) -> 
G57: =IF(C57="","",IF(E57>0,G58-E57,G58+#REF!)) -> 
G58: =IF(C58="","",IF(E58>0,G59-E58,G59+F58)) -> 
G74: =IF(C74="","",IF(E74>0,G75-E74,G75+F74)) -> 

Sheet BANQUE 2
C1: BANQUE 2
A2: =OFFSET(G4,1,) -> 4840.59 | C2: Dates | D2: Libellés | E2: Débit | F2: Crédit | G2: Solde
B3: Compt_2
A4: =COUNTA($C4:$C$5) -> 0 | G4: =IF(C4<>"",$G$5-SUM(E4:$E$5)+SUM(F4:$F$5),"") -> 
D5: SOLDE AU 28/02/2014 | G5: 4840.59

Sheet BANQUE 3
C1: BANQUE 3
A2: =OFFSET(G4,1,) -> 1410.35 | C2: Dates | D2: Libellés | E2: Débit | F2: Crédit | G2: Solde
B3: Compt_3
A4: =COUNTA($C4:$C$15) -> 10 | G4: =IF(C4<>"",$G$15-SUM(E4:$E$15)+SUM(F4:$F$15),"") -> 
A5: =COUNTA($C5:$C$15) -> 10 | C5: 2014-02-03 | D5: Chèque | F5: 550 | G5: =IF(C5<>"",$G$15-SUM(E5:$E$15)+SUM(F5:$F$15),"") -> 1410.35
A6: =COUNTA($C6:$C$15) -> 9 | C6: 2014-01-27 | D6: CHEQUE N° 500000 | E6: 82.61 | G6: =IF(C6<>"",$G$15-SUM(E6:$E$15)+SUM(F6:$F$15),"") -> 860.35
A7: =COUNTA($C7:$C$15) -> 8 | C7: 2014-01-27 | D7: CHEQUE N° 500000 | E7: 32.95 | G7: =IF(C7<>"",$G$15-SUM(E7:$E$15)+SUM(F7:$F$15),"") -> 942.96
A8: =COUNTA($C8:$C$15) -> 7 | C8: 2014-01-23 | D8: CHEQUE N° 500000 | E8: 44.99 | G8: =IF(C8<>"",$G$15-SUM(E8:$E$15)+SUM(F8:$F$15),"") -> 975.91
A9: =COUNTA($C9:$C$15) -> 6 | C9: 2014-01-21 | D9: CHEQUE N° 500000 | F9: 16.5 | G9: =IF(C9<>"",$G$15-SUM(E9:$E$15)+SUM(F9:$F$15),"") -> 1020.9
A10: =COUNTA($C10:$C$15) -> 5 | C10: 2014-01-15 | D10: CHEQUE N° 500000 | E10: 36.8 | G10: =IF(C10<>"",$G$15-SUM(E10:$E$15)+SUM(F10:$F$15),"") -> 1004.4
A11: =COUNTA($C11:$C$15) -> 4 | C11: 2014-01-15 | D11: ASSURANCE | F11: 824.45 | G11: =IF(C11<>"",$G$15-SUM(E11:$E$15)+SUM(F11:$F$15),"") -> 1041.2
A12: =COUNTA($C12:$C$15) -> 3 | C12: 2014-01-08 | D12: VIREMENT EMIS | E12: 980 | G12: =IF(C12<>"",$G$15-SUM(E12:$E$15)+SUM(F12:$F$15),"") -> 216.75
A13: =COUNTA($C13:$C$15) -> 2 | C13: 2014-01-07 | D13: Frais de tenue de compte | E13: 3.25 | G13: =IF(C13<>"",$G$15-SUM(E13:$E$15)+SUM(F13:$F$15),"") -> 1196.75
A14: =COUNTA($C14:$C$15) -> 1 | C14: 2013-12-02 | D14: VIREMENT RECU | F14: 200 | G14: =IF(C14<>"",$G$15-SUM(E14:$E$15)+SUM(F14:$F$15),"") -> 1200
D15: SOLDE DE DÉPART | G15: 1000

Sheet BANQUE 4
C1: BANQUE 4
A2: =OFFSET(G4,1,) -> 7973.27 | C2: Dates | D2: Libellés | E2: Débit | F2: Crédit | G2: Solde
B3: Compt_4
A4: =COUNTA($C4:$C$6) -> 1 | G4: =IF(C4<>"",$G$6-SUM(E4:$E$6)+SUM($F4:$F$6),"") -> 
A5: =COUNTA($C5:$C$6) -> 1 | C5: 2014-03-03 | D5: VIR RECU / | F5: 6000 | G5: =IF(C5<>"",$G$6-SUM(E5:$E$6)+SUM($F5:$F$6),"") -> 7973.27
D6: SOLDE AU 28/02/2014 | G6: 1973.27
